[Event "19th IPCA WCC 2019"]
[Site "Ruzomberok"]
[Date "2019.06.29"]
[Round "2.8"]
[White "Jurkiewicz, Krzysztof"]
[Black "Tersinsev, Andrey"]
[Result "1-0"]
[ECO "E91"]
[WhiteElo "2007"]
[BlackElo "2164"]
[Annotator "NA"]
[PlyCount "61"]
[EventDate "2019.06.28"]
[EventType "swiss"]
[EventCountry "SVK"]
[SourceTitle "playchess.com"]
[Source "ChessBase"]
[SourceQuality "1"]
[TimeControl "5400+30"]

1. d4 {[%emt 0:00:00]} Nf6 {[%emt 0:00:00]} 2. c4 {[%emt 0:00:00]} g6 {[%emt 0:00:00]} 3. Nc3 {[%emt 0:00:00]} Bg7 {[%emt 0:00:00]} 4. e4 {[%emt 0:00:00]} d6 {[%emt 0:00:15]} 5. Be2 {[%emt 0:00:00]} O-O {[%emt 0:00:08]} 6. Nf3 {[%emt 0:00:00]} c5 {[%emt 0:00:12]} 7. d5 {[%emt 0:00:42]} e6 {[%emt 0:00:11]} 8. O-O {[%emt 0:01:12]} exd5 {[%emt 0:00:08]} 9. exd5 {[%emt 0:00:07]} Re8 {[%emt 0:02:01]} 10. Bg5 {[%emt 0:02:51]} h6 {[%emt 0:00:44]} 11. Bh4 {[%emt 0:00:21]} g5 {[%emt 0:01:10]} 12. Bg3 {[%emt 0:00:43]} Nh5 {[%emt 0:00:20]} 13. Qc2 {[%emt 0:07:59]} Nxg3 {[%emt 0:03:08]} 14. hxg3 {[%emt 0:00:31]} Nd7 {[%emt 0:03:29]} 15. Rae1 {[%emt 0:07:46]} Ne5 {[%emt 0:01:40]} 16. Nxe5 {[%emt 0:06:51]} Rxe5 {[%emt 0:04:46]} 17. Bd3 {[%emt 0:00:54]} Qe7 {[%emt 0:01:17]} 18. Rxe5 {[%emt 0:06:50]} Qxe5 {[%emt 0:00:26]} 19. Qd1 {[%emt 0:03:38]} f5 {[%emt 0:09:19]} 20. Re1 {[%emt 0:00:44]} Qf6 {[%emt 0:02:44]} 21. Re8+ {[%emt 0:00:47]} Bf8 {[%emt 0:01:36]} 22. Nb5 {[%emt 0:04:24]} b6 {[%emt 0:17:10]} 23. Qe2 {[%emt 0:06:55]} Bb7 {[%emt 0:07:21]} 24. Re6 {[%emt 0:00:37]} Qf7 {[%emt 0:02:09]} 25. Nxd6 {[%emt 0:04:10]} Bxd6 {[%emt 0:00:10]} 26. Rxd6 {[%emt 0:00:10]} b5 {[%emt 0:08:37]} 27. Qe5 {[%emt 0:03:28]} Re8 {[%emt 0:05:15]} 28. Re6 {[%emt 0:00:40]} Bc6 {[%emt 0:01:53]} 29. Bxf5 {[%emt 0:01:54]} Bd7 {[%emt 0:01:05]} 30. Rxe8+ {[%emt 0:05:29]} Bxe8 {[%emt 0:00:35]} 31. Be6 {[%emt 0:00:27]} 1-0

[Event "19th IPCA WCC 2019"]
[Site "Ruzomberok"]
[Date "2019.06.29"]
[Round "2.9"]
[White "Juvan, Jaka"]
[Black "Zavarsky, Juraj"]
[Result "1-0"]
[ECO "B36"]
[WhiteElo "2168"]
[BlackElo "2000"]
[Annotator "NA"]
[PlyCount "99"]
[EventDate "2019.06.28"]
[EventType "swiss"]
[EventCountry "SVK"]
[SourceTitle "playchess.com"]
[Source "ChessBase"]
[SourceQuality "1"]
[TimeControl "5400+30"]

1. e4 {[%emt 0:00:00]} c5 {[%emt 0:00:00]} 2. Nf3 {[%emt 0:00:00]} Nc6 {[%emt 0:00:07]} 3. d4 {[%emt 0:00:00]} cxd4 {[%emt 0:00:07]} 4. Nxd4 {[%emt 0:00:00]} g6 {[%emt 0:00:51]} 5. c4 {[%emt 0:00:21]} Nf6 {[%emt 0:00:19]} 6. Nc3 {[%emt 0:00:12]} d6 {[%emt 0:00:06]} 7. Be2 {[%emt 0:01:13]} Nxd4 {[%emt 0:02:38]} 8. Qxd4 {[%emt 0:00:10]} Bg7 {[%emt 0:00:03]} 9. Bg5 {[%emt 0:00:48]} h6 {[%emt 0:03:17]} 10. Be3 {[%emt 0:00:26]} O-O {[%emt 0:00:24]} 11. Qd2 {[%emt 0:00:11]} Kh7 {[%emt 0:00:07]} 12. O-O {[%emt 0:01:34]} Be6 {[%emt 0:02:54]} 13. f4 {[%emt 0:06:26]} Rc8 {[%emt 0:09:54]} 14. b3 {[%emt 0:07:55]} Qa5 {[%emt 0:00:59]} 15. Rad1 {[%emt 0:13:04]} a6 {[%emt 0:27:27]} 16. Bd4 {[%emt 0:09:12]} b5 {[%emt 0:06:31]} 17. cxb5 {[%emt 0:08:26]} axb5 {[%emt 0:00:54]} 18. Bxf6 {[%emt 0:00:35]} Bxf6 {[%emt 0:03:24]} 19. Nxb5 {[%emt 0:00:09]} Qb6+ {[%emt 0:02:22]} 20. Kh1 {[%emt 0:00:30]} Ra8 {[%emt 0:04:52]} 21. f5 {[%emt 0:05:36]} Bd7 {[%emt 0:01:48]} 22. a4 {[%emt 0:00:46]} gxf5 {[%emt 0:02:04]} 23. exf5 {[%emt 0:00:23]} Bc6 {[%emt 0:01:14]} 24. Qd3 {[%emt 0:16:16]} Rac8 {[%emt 0:05:36]} 25. Bf3 {[%emt 0:10:31]} Bxf3 {[%emt 0:03:21]} 26. Rxf3 {[%emt 0:00:57]} Rg8 {[%emt 0:01:30]} 27. Qd5 {[%emt 0:05:30]} Rg7 {[%emt 0:00:36]} 28. b4 {[%emt 0:00:19]} Rc2 {[%emt 0:01:13]} 29. a5 {[%emt 0:02:36]} Qa6 {[%emt 0:02:06]} 30. g3 {[%emt 0:01:59]} Qc8 {[%emt 0:02:31]} 31. Na3 {[%emt 0:01:21]} Rc1 {[%emt 0:03:41]} 32. b5 {[%emt 0:00:12]} Bb2 {[%emt 0:01:37]} 33. a6 {[%emt 0:01:03]} Bxa3 {[%emt 0:02:50]} 34. Rxa3 {[%emt 0:00:14]} Rxd1+ {[%emt 0:05:22]} 35. Qxd1 {[%emt 0:00:03]} Qc5 {[%emt 0:00:30]} 36. Qd3 {[%emt 0:01:08]} Qc1+ {[%emt 0:00:35]} 37. Kg2 {[%emt 0:00:02]} Qb2+ {[%emt 0:00:51]} 38. Kf3 {[%emt 0:01:03]} Qxh2 {[%emt 0:00:17]} 39. f6+ {[%emt 0:00:14]} Rg6 {[%emt 0:00:11]} 40. fxe7 {[%emt 0:00:39]} Qxg3+ {[%emt 0:00:42]} 41. Ke2 {[%emt 0:00:12]} Qe5+ {[%emt 0:01:22]} 42. Kd1 {[%emt 0:04:00]} Kg8 {[%emt 0:00:53]} 43. Qe3 {[%emt 0:01:01]} Qd5+ {[%emt 0:00:43]} 44. Kc1 {[%emt 0:01:03]} Qc4+ {[%emt 0:00:31]} 45. Kd1 {[%emt 0:00:43]} Qd5+ {[%emt 0:00:45]} 46. Rd3 {[%emt 0:00:10]} Qh1+ {[%emt 0:00:31]} 47. Qe1 {[%emt 0:01:13]} Qh5+ {[%emt 0:00:13]} 48. Kc1 {[%emt 0:00:03]} Qc5+ {[%emt 0:01:32]} 49. Rc3 {[%emt 0:00:05]} Rg1 {[%emt 0:00:41]} 50. e8=Q+ 1-0

[Event "19th IPCA WCC 2019"]
[Site "Ruzomberok"]
[Date "2019.06.29"]
[Round "2.10"]
[White "Gedgafov, Chamal"]
[Black "Konkolova, Nikola"]
[Result "1-0"]
[ECO "D43"]
[WhiteElo "2163"]
[BlackElo "1518"]
[Annotator "NA"]
[PlyCount "61"]
[EventDate "2019.06.28"]
[EventType "swiss"]
[EventCountry "SVK"]
[SourceTitle "playchess.com"]
[Source "ChessBase"]
[SourceQuality "1"]
[TimeControl "5400+30"]

1. d4 {[%emt 0:00:00]} e6 {[%emt 0:00:00]} 2. c4 {[%emt 0:00:00]} d5 {[%emt 0:00:22]} 3. Nc3 {[%emt 0:00:00]} c6 {[%emt 0:00:54]} 4. Nf3 {[%emt 0:00:31]} Nf6 {[%emt 0:00:58]} 5. cxd5 {[%emt 0:00:27]} cxd5 {[%emt 0:00:17]} 6. Bg5 {[%emt 0:00:43]} h6 {[%emt 0:00:51]} 7. Bxf6 {[%emt 0:02:26]} Qxf6 {[%emt 0:00:16]} 8. e3 {[%emt 0:00:19]} Nc6 {[%emt 0:01:02]} 9. Bd3 {[%emt 0:00:35]} Bb4 {[%emt 0:02:34]} 10. O-O {[%emt 0:00:26]} O-O {[%emt 0:00:57]} 11. Rc1 {[%emt 0:01:04]} Bd7 {[%emt 0:02:22]} 12. a3 {[%emt 0:00:25]} Bxc3 {[%emt 0:00:40]} 13. Rxc3 {[%emt 0:01:13]} Rac8 {[%emt 0:01:32]} 14. Qd2 {[%emt 0:03:58]} Ne7 {[%emt 0:02:00]} 15. Ne5 {[%emt 0:01:10]} Bc6 {[%emt 0:01:18]} 16. Rfc1 {[%emt 0:01:25]} Ba4 {[%emt 0:05:45]} 17. Rxc8 {[%emt 0:06:15]} Rxc8 {[%emt 0:00:34]} 18. Rxc8+ {[%emt 0:00:10]} Nxc8 {[%emt 0:00:07]} 19. Qa5 {[%emt 0:00:23]} Be8 {[%emt 0:06:44]} 20. Qc7 {[%emt 0:01:30]} Nb6 {[%emt 0:02:38]} 21. Qxb7 {[%emt 0:01:10]} Qd8 {[%emt 0:00:46]} 22. Qxa7 {[%emt 0:00:38]} Nd7 {[%emt 0:00:42]} 23. Nxd7 {[%emt 0:00:51]} Qxd7 {[%emt 0:00:12]} 24. Qxd7 {[%emt 0:00:11]} Bxd7 {[%emt 0:00:07]} 25. Kf1 {[%emt 0:00:07]} Kf8 {[%emt 0:00:16]} 26. Ke2 {[%emt 0:00:08]} Ke7 {[%emt 0:00:24]} 27. Kd2 {[%emt 0:00:10]} Kd6 {[%emt 0:00:20]} 28. b4 {[%emt 0:00:11]} Kc6 {[%emt 0:00:26]} 29. a4 {[%emt 0:00:15]} Kb6 {[%emt 0:00:39]} 30. a5+ {[%emt 0:00:09]} Ka7 {[%emt 0:00:20]} 31. b5 {[%emt 0:00:08]} 1-0

[Event "19th IPCA WCC 2019"]
[Site "Ruzomberok"]
[Date "2019.06.29"]
[Round "2.11"]
[White "Kozicz, Andrzej"]
[Black "Mukha, Nikolay"]
[Result "0-1"]
[ECO "B34"]
[WhiteElo "1979"]
[BlackElo "2159"]
[Annotator "NA"]
[PlyCount "76"]
[EventDate "2019.06.28"]
[EventType "swiss"]
[EventCountry "SVK"]
[SourceTitle "playchess.com"]
[Source "ChessBase"]
[SourceQuality "1"]
[TimeControl "5400+30"]

1. e4 {[%emt 0:00:00]} c5 {[%emt 0:00:00]} 2. Nf3 {[%emt 0:00:00]} Nc6 {[%emt 0:00:00]} 3. d4 {[%emt 0:00:00]} cxd4 {[%emt 0:00:02]} 4. Nxd4 {[%emt 0:00:09]} Nf6 {[%emt 0:00:18]} 5. Nc3 {[%emt 0:00:24]} e5 {[%emt 0:00:02]} 6. Ndb5 {[%emt 0:00:41]} d6 {[%emt 0:00:03]} 7. Nd5 {[%emt 0:00:04]} Nxd5 {[%emt 0:00:51]} 8. exd5 {[%emt 0:01:38]} Nb8 {[%emt 0:00:16]} 9. c4 {[%emt 0:00:40]} Be7 {[%emt 0:00:17]} 10. Be2 {[%emt 0:01:56]} O-O {[%emt 0:00:03]} 11. O-O {[%emt 0:00:37]} a6 {[%emt 0:01:27]} 12. Nc3 {[%emt 0:00:50]} f5 {[%emt 0:00:52]} 13. Kh1 {[%emt 0:00:53]} Nd7 {[%emt 0:01:08]} 14. f4 {[%emt 0:00:30]} Bf6 {[%emt 0:01:36]} 15. Qe1 {[%emt 0:00:34]} Re8 {[%emt 0:02:05]} 16. Qf2 {[%emt 0:01:19]} Kh8 {[%emt 0:07:50]} 17. Rb1 {[%emt 0:02:02]} Rb8 {[%emt 0:05:30]} 18. Bh5 {[%emt 0:05:27]} g6 {[%emt 0:00:45]} 19. Be2 {[%emt 0:00:17]} b6 {[%emt 0:01:22]} 20. Rd1 {[%emt 0:04:46]} Qe7 {[%emt 0:05:52]} 21. Bf1 {[%emt 0:00:16]} a5 {[%emt 0:04:14]} 22. a3 {[%emt 0:08:38]} exf4 {[%emt 0:03:41]} 23. Bxf4 {[%emt 0:01:29]} Ne5 {[%emt 0:00:20]} 24. Nb5 {[%emt 0:02:09]} g5 {[%emt 0:03:52]} 25. Bd2 {[%emt 0:01:04]} f4 {[%emt 0:06:01]} 26. Re1 {[%emt 0:03:18]} Bf5 {[%emt 0:03:29]} 27. Rbc1 {[%emt 0:01:48]} Qf8 {[%emt 0:09:28]} 28. Bc3 {[%emt 0:04:49]} Bd7 {[%emt 0:08:27]} 29. a4 {[%emt 0:04:36]} Bxb5 {[%emt 0:06:34]} 30. axb5 {[%emt 0:00:03]} Nd7 {[%emt 0:01:00]} 31. Qf3 {[%emt 0:10:26]} Bxc3 {[%emt 0:04:10]} 32. Qxc3+ {[%emt 0:01:01]} Qg7 {[%emt 0:00:15]} 33. Qxg7+ {[%emt 0:04:03]} Kxg7 {[%emt 0:00:01]} 34. Kg1 {[%emt 0:00:16]} Nc5 {[%emt 0:00:43]} 35. Kf2 {[%emt 0:03:57]} g4 {[%emt 0:04:08]} 36. h3 {[%emt 0:06:14]} h5 {[%emt 0:00:35]} 37. hxg4 {[%emt 0:02:44]} hxg4 38. Rc2 {[%emt 0:04:34]} g3+ {[%emt 0:00:29]} 0-1

[Event "19th IPCA WCC 2019"]
[Site "Ruzomberok"]
[Date "2019.06.29"]
[Round "2.12"]
[White "Jennitha, Anto K."]
[Black "Zicho, Anton"]
[Result "1-0"]
[ECO "B12"]
[WhiteElo "1972"]
[BlackElo "1662"]
[Annotator "NA"]
[PlyCount "53"]
[EventDate "2019.06.28"]
[EventType "swiss"]
[EventCountry "SVK"]
[SourceTitle "playchess.com"]
[Source "ChessBase"]
[SourceQuality "1"]
[TimeControl "5400+30"]

1. e4 {[%emt 0:00:00]} c6 {[%emt 0:01:06]} 2. d4 {[%emt 0:00:00]} d5 {[%emt 0:00:20]} 3. e5 {[%emt 0:00:00]} Bf5 {[%emt 0:00:43]} 4. Nf3 {[%emt 0:00:00]} e6 {[%emt 0:00:33]} 5. Be2 {[%emt 0:00:26]} Bb4+ {[%emt 0:04:02]} 6. c3 {[%emt 0:00:42]} Ba5 {[%emt 0:00:52]} 7. O-O {[%emt 0:03:04]} h6 {[%emt 0:03:22]} 8. Nbd2 {[%emt 0:06:40]} Bg4 {[%emt 0:04:51]} 9. Re1 {[%emt 0:03:15]} Ne7 {[%emt 0:04:37]} 10. Nf1 {[%emt 0:02:14]} Bh5 {[%emt 0:04:21]} 11. Ng3 {[%emt 0:04:22]} Bg6 {[%emt 0:04:29]} 12. Nh4 {[%emt 0:03:53]} Bh7 {[%emt 0:00:32]} 13. Nh5 {[%emt 0:00:13]} O-O {[%emt 0:01:38]} 14. Bd3 {[%emt 0:06:41]} Bxd3 {[%emt 0:12:46]} 15. Qxd3 {[%emt 0:00:07]} Nd7 {[%emt 0:06:03]} 16. Qg3 {[%emt 0:04:07]} g6 {[%emt 0:14:25]} 17. Bxh6 {[%emt 0:01:07]} Nf5 {[%emt 0:01:24]} 18. Nxf5 {[%emt 0:00:27]} exf5 {[%emt 0:00:16]} 19. Nf4 {[%emt 0:11:22]} Qe7 {[%emt 0:04:52]} 20. Bg5 {[%emt 0:01:03]} Qe8 {[%emt 0:01:15]} 21. e6 {[%emt 0:01:04]} f6 {[%emt 0:05:54]} 22. exd7 {[%emt 0:00:38]} Qf7 {[%emt 0:01:06]} 23. Bh6 {[%emt 0:00:35]} Rfd8 {[%emt 0:02:37]} 24. Nxg6 {[%emt 0:00:31]} Bc7 {[%emt 0:03:46]} 25. f4 {[%emt 0:03:01]} Kh7 {[%emt 0:04:42]} 26. Re7 {[%emt 0:00:05]} Qxe7 {[%emt 0:00:42]} 27. Nxe7 {[%emt 0:00:04]} 1-0

[Event "19th IPCA WCC 2019"]
[Site "Ruzomberok"]
[Date "2019.06.29"]
[Round "2.13"]
[White "Samarth J Rao"]
[Black "Tsapalin, Sergey"]
[Result "1/2-1/2"]
[ECO "B22"]
[WhiteElo "1593"]
[BlackElo "1935"]
[Annotator "NA"]
[PlyCount "105"]
[EventDate "2019.06.28"]
[EventType "swiss"]
[EventCountry "SVK"]
[SourceTitle "playchess.com"]
[Source "ChessBase"]
[SourceQuality "1"]
[TimeControl "5400+30"]

1. e4 {[%emt 0:00:00]} c5 {[%emt 0:00:00]} 2. c3 {[%emt 0:00:00]} e5 {[%emt 0:00:05]} 3. Bc4 {[%emt 0:00:00]} Nf6 {[%emt 0:00:16]} 4. d3 {[%emt 0:00:00]} Nc6 {[%emt 0:01:29]} 5. Nf3 {[%emt 0:00:31]} Be7 {[%emt 0:01:33]} 6. O-O {[%emt 0:00:25]} O-O {[%emt 0:00:03]} 7. Re1 {[%emt 0:00:24]} d6 {[%emt 0:01:29]} 8. h3 {[%emt 0:01:28]} Rb8 {[%emt 0:00:19]} 9. a4 {[%emt 0:05:41]} a6 {[%emt 0:01:16]} 10. Na3 {[%emt 0:00:43]} Bd7 {[%emt 0:04:49]} 11. d4 {[%emt 0:04:55]} cxd4 {[%emt 0:00:48]} 12. cxd4 {[%emt 0:00:09]} exd4 {[%emt 0:00:09]} 13. Nxd4 {[%emt 0:00:24]} Ne5 {[%emt 0:00:40]} 14. Ba2 {[%emt 0:01:45]} Qc8 {[%emt 0:05:07]} 15. f4 {[%emt 0:04:45]} Ng6 {[%emt 0:01:11]} 16. e5 {[%emt 0:06:29]} dxe5 {[%emt 0:26:38]} 17. fxe5 {[%emt 0:00:09]} Ne8 {[%emt 0:01:13]} 18. e6 {[%emt 0:00:28]} fxe6 {[%emt 0:00:03]} 19. Nxe6 {[%emt 0:00:25]} Kh8 {[%emt 0:00:14]} 20. Nxf8 {[%emt 0:00:28]} Bxf8 {[%emt 0:00:11]} 21. Bd2 {[%emt 0:09:54]} Nf6 {[%emt 0:00:22]} 22. Rc1 {[%emt 0:01:00]} Bc6 {[%emt 0:00:23]} 23. Bg5 {[%emt 0:03:10]} Qf5 {[%emt 0:00:55]} 24. Bxf6 {[%emt 0:02:10]} gxf6 {[%emt 0:00:20]} 25. Qg4 {[%emt 0:12:38]} Qxg4 {[%emt 0:02:23]} 26. hxg4 {[%emt 0:00:54]} Nf4 {[%emt 0:00:07]} 27. Rc2 {[%emt 0:03:50]} Nd3 {[%emt 0:02:27]} 28. Ra1 {[%emt 0:01:24]} Nxb2 {[%emt 0:03:52]} 29. Nc4 {[%emt 0:01:05]} Nxa4 {[%emt 0:00:15]} 30. Na5 {[%emt 0:04:16]} Bd7 {[%emt 0:03:31]} 31. Rc7 {[%emt 0:01:51]} Bc5+ {[%emt 0:00:46]} 32. Kh1 {[%emt 0:00:34]} Bxg4 {[%emt 0:01:23]} 33. Bb1 {[%emt 0:00:36]} Re8 {[%emt 0:01:28]} 34. Bc2 {[%emt 0:01:27]} Bd4 {[%emt 0:01:43]} 35. Rxh7+ {[%emt 0:05:18]} Kg8 {[%emt 0:00:02]} 36. Rh4 Bxa1 {[%emt 0:02:45]} 37. Rxg4+ {[%emt 0:01:27]} Kf8 {[%emt 0:00:21]} 38. Rxa4 Re1+ {[%emt 0:00:08]} 39. Kh2 {[%emt 0:01:38]} Be5+ {[%emt 0:00:09]} 40. Kh3 {[%emt 0:00:34]} Re3+ {[%emt 0:00:08]} 41. Kh4 {[%emt 0:00:25]} Re2 {[%emt 0:01:00]} 42. Bb3 {[%emt 0:02:37]} Rxg2 {[%emt 0:06:25]} 43. Nxb7 {[%emt 0:00:35]} Rb2 {[%emt 0:01:17]} 44. Bd5 {[%emt 0:00:22]} Rb5 {[%emt 0:00:32]} 45. Be4 {[%emt 0:00:32]} f5 {[%emt 0:00:38]} 46. Bf3 {[%emt 0:00:24]} Rb3 {[%emt 0:00:33]} 47. Bg2 {[%emt 0:01:21]} Bf6+ {[%emt 0:00:45]} 48. Kh5 {[%emt 0:00:30]} Rg3 {[%emt 0:00:14]} 49. Bf1 {[%emt 0:02:33]} Kg7 {[%emt 0:00:23]} 50. Rxa6 {[%emt 0:02:09]} Rg5+ {[%emt 0:00:22]} 51. Kh4 {[%emt 0:00:12]} Rg1+ {[%emt 0:00:21]} 52. Kh3 {[%emt 0:00:15]} Rxf1 {[%emt 0:00:08]} 53. Nd6 {[%emt 0:00:12]} 1/2-1/2

[Event "19th IPCA WCC 2019"]
[Site "Ruzomberok"]
[Date "2019.06.29"]
[Round "2.14"]
[White "Gerasimova, Svetlana"]
[Black "Engel, Katalin"]
[Result "1-0"]
[ECO "C00"]
[WhiteElo "1913"]
[BlackElo "1537"]
[Annotator "NA"]
[PlyCount "87"]
[EventDate "2019.06.28"]
[EventType "swiss"]
[EventCountry "SVK"]
[SourceTitle "playchess.com"]
[Source "ChessBase"]
[SourceQuality "1"]
[TimeControl "5400+30"]

1. e4 {[%emt 0:00:00]} e6 {[%emt 0:00:00]} 2. d3 {[%emt 0:00:00]} d5 {[%emt 0:00:00]} 3. Nd2 {[%emt 0:00:00]} c5 {[%emt 0:00:00]} 4. Ngf3 {[%emt 0:00:00]} Nc6 {[%emt 0:00:14]} 5. g3 {[%emt 0:00:03]} Nf6 {[%emt 0:00:31]} 6. Bg2 {[%emt 0:00:10]} Be7 {[%emt 0:00:29]} 7. O-O {[%emt 0:00:33]} O-O {[%emt 0:00:19]} 8. e5 {[%emt 0:00:41]} Nd7 {[%emt 0:01:02]} 9. Re1 {[%emt 0:00:14]} f6 {[%emt 0:00:24]} 10. exf6 {[%emt 0:03:14]} Rxf6 {[%emt 0:02:46]} 11. Ng5 {[%emt 0:02:55]} Nf8 {[%emt 0:01:08]} 12. f4 {[%emt 0:14:19]} h6 {[%emt 0:05:23]} 13. Ngf3 {[%emt 0:01:14]} b5 {[%emt 0:03:44]} 14. a4 {[%emt 0:08:31]} b4 {[%emt 0:01:32]} 15. b3 {[%emt 0:01:08]} a5 {[%emt 0:00:19]} 16. Bb2 {[%emt 0:00:09]} Rg6 {[%emt 0:01:54]} 17. Ne5 {[%emt 0:03:22]} Nxe5 {[%emt 0:01:14]} 18. Bxe5 {[%emt 0:00:12]} Ra6 {[%emt 0:04:15]} 19. Qh5 {[%emt 0:07:23]} Bf6 {[%emt 0:02:13]} 20. Nf3 {[%emt 0:00:38]} Bxe5 {[%emt 0:06:18]} 21. Nxe5 {[%emt 0:01:41]} Rf6 {[%emt 0:00:29]} 22. Re2 {[%emt 0:05:08]} c4 {[%emt 0:10:23]} 23. Rae1 {[%emt 0:08:33]} Rf5 {[%emt 0:07:19]} 24. Qf3 {[%emt 0:02:16]} Rf6 {[%emt 0:20:01]} 25. dxc4 {[%emt 0:01:31]} Ng6 {[%emt 0:01:19]} 26. cxd5 {[%emt 0:00:38]} Nxe5 {[%emt 0:00:39]} 27. Rxe5 {[%emt 0:00:20]} g5 {[%emt 0:03:25]} 28. dxe6 {[%emt 0:05:15]} Bxe6 {[%emt 0:02:12]} 29. Qe2 {[%emt 0:07:40]} Bf7 {[%emt 0:11:44]} 30. fxg5 {[%emt 0:02:04]} hxg5 {[%emt 0:00:57]} 31. Rxg5+ {[%emt 0:00:26]} Kf8 {[%emt 0:00:39]} 32. Qe5 {[%emt 0:03:06]} Rae6 {[%emt 0:01:27]} 33. Qc5+ {[%emt 0:00:32]} Ke8 {[%emt 0:02:10]} 34. Bc6+ {[%emt 0:00:20]} Qd7 {[%emt 0:00:32]} 35. Bxd7+ {[%emt 0:00:06]} Kxd7 {[%emt 0:00:21]} 36. Rd5+ {[%emt 0:00:32]} Rd6 {[%emt 0:00:23]} 37. Qa7+ {[%emt 0:00:34]} Kc8 {[%emt 0:01:52]} 38. Rxd6 {[%emt 0:00:09]} Rxd6 {[%emt 0:00:22]} 39. Qxf7 {[%emt 0:00:06]} Rd2 {[%emt 0:01:01]} 40. Re8+ {[%emt 0:00:11]} Rd8 {[%emt 0:00:09]} 41. Qe6+ {[%emt 0:00:52]} Kc7 {[%emt 0:00:11]} 42. Re7+ {[%emt 0:00:06]} Kb8 {[%emt 0:00:15]} 43. Qb6+ {[%emt 0:00:05]} Kc8 {[%emt 0:00:17]} 44. Qc7# {[%emt 0:00:09]} 1-0

[Event "19th IPCA WCC 2019"]
[Site "Ruzomberok"]
[Date "2019.06.29"]
[Round "2.15"]
[White "Spirka, Jan"]
[Black "Alekseev, Mikhail"]
[Result "0-1"]
[ECO "B12"]
[WhiteElo "1366"]
[BlackElo "1869"]
[Annotator "NA"]
[PlyCount "89"]
[EventDate "2019.06.28"]
[EventType "swiss"]
[EventCountry "SVK"]
[SourceTitle "playchess.com"]
[Source "ChessBase"]
[SourceQuality "1"]
[TimeControl "5400+30"]

1. e4 {[%emt 0:00:00]} c6 {[%emt 0:00:00]} 2. d4 {[%emt 0:00:07]} d5 {[%emt 0:00:00]} 3. e5 {[%emt 0:01:48]} c5 {[%emt 0:00:06]} 4. Nf3 {[%emt 0:02:09]} Nc6 {[%emt 0:00:27]} 5. Bb5 {[%emt 0:00:38]} Bg4 {[%emt 0:04:06]} 6. O-O {[%emt 0:01:24]} cxd4 {[%emt 0:04:13]} 7. h3 {[%emt 0:01:02]} Bxf3 {[%emt 0:00:29]} 8. Qxf3 {[%emt 0:00:56]} a6 {[%emt 0:01:47]} 9. Bxc6+ {[%emt 0:01:48]} bxc6 {[%emt 0:00:05]} 10. Re1 {[%emt 0:01:13]} e6 {[%emt 0:00:54]} 11. Nd2 {[%emt 0:01:22]} c5 {[%emt 0:04:04]} 12. Nb3 {[%emt 0:01:13]} Qb6 {[%emt 0:01:30]} 13. Bd2 {[%emt 0:01:53]} c4 {[%emt 0:03:17]} 14. Na5 {[%emt 0:03:01]} c3 {[%emt 0:01:17]} 15. Nc4 {[%emt 0:00:20]} Qd8 {[%emt 0:03:10]} 16. bxc3 Rc8 17. Nd6+ {[%emt 0:04:21]} Bxd6 {[%emt 0:00:52]} 18. exd6 {[%emt 0:00:16]} Qxd6 {[%emt 0:00:50]} 19. cxd4 {[%emt 0:00:41]} Nf6 {[%emt 0:00:32]} 20. Rab1 {[%emt 0:00:24]} Ne4 {[%emt 0:04:20]} 21. Bf4 {[%emt 0:04:18]} Qc6 {[%emt 0:01:37]} 22. Qd3 {[%emt 0:07:25]} O-O {[%emt 0:00:54]} 23. f3 {[%emt 0:02:37]} Nc3 {[%emt 0:01:17]} 24. Rb2 {[%emt 0:00:47]} Qc4 {[%emt 0:00:30]} 25. Qxc4 {[%emt 0:03:07]} Rxc4 {[%emt 0:00:12]} 26. Bd6 {[%emt 0:01:28]} Rfc8 {[%emt 0:00:20]} 27. Bc5 {[%emt 0:00:52]} Na4 {[%emt 0:00:15]} 28. Rb4 {[%emt 0:00:42]} R8xc5 {[%emt 0:02:28]} 29. dxc5 Rxb4 {[%emt 0:00:14]} 30. c6 {[%emt 0:01:16]} Kf8 {[%emt 0:00:31]} 31. c7 Rc4 32. Rb1 {[%emt 0:02:40]} Rxc7 {[%emt 0:00:40]} 33. Rb8+ {[%emt 0:00:19]} Ke7 {[%emt 0:00:06]} 34. Ra8 {[%emt 0:01:11]} Rxc2 {[%emt 0:00:03]} 35. Rxa6 {[%emt 0:00:29]} Rxa2 {[%emt 0:00:09]} 36. Ra7+ {[%emt 0:00:27]} Kf6 {[%emt 0:00:11]} 37. Kh2 {[%emt 0:00:14]} Nc3 {[%emt 0:00:12]} 38. Rxa2 {[%emt 0:03:26]} Nxa2 {[%emt 0:00:02]} 39. Kg3 {[%emt 0:00:24]} Ke5 {[%emt 0:00:17]} 40. Kf2 {[%emt 0:01:33]} d4 {[%emt 0:00:06]} 41. Ke2 {[%emt 0:00:39]} h5 {[%emt 0:00:18]} 42. g3 {[%emt 0:00:34]} h4 {[%emt 0:00:05]} 43. gxh4 {[%emt 0:05:20]} Kf4 {[%emt 0:00:16]} 44. h5 {[%emt 0:01:31]} Kg3 {[%emt 0:00:15]} 45. Kd3 0-1